bitfinex/quotes_SOLUSD_20251208
["timestamp","ask_amount","ask_price","bid_price","bid_amount"]
[1765206255158,17.15769728,137.46,137.43,7.27639261]
[1765206255660,8.80994492,137.44,137.41,0.1]
[1765206255952,0.69,137.48,137.42,8.37775236]
[1765206256253,0.69,137.48,137.41,8.06]
[1765206256254,8.80994492,137.45,137.41,8.06]
[1765206256758,8.80994492,137.43,137.41,8.06]
[1765206257055,9.49994492,137.45,137.41,8.06]
[1765206257472,8.80994492,137.45,137.42,0.72]
[1765206257770,8.80994492,137.47,137.43,7.27643163]
[1765206258147,8.80994492,137.47,137.43,7.99643163]
[1765206258637,8.80994492,137.48,137.44,16.33775236]
[1765206258833,18.17966972,137.52,137.45,7.65775236]
[1765206258834,8.80994492,137.51,137.45,7.65775236]
[1765206259078,12.94285088,137.58,137.48,7.65775236]
[1765206259079,23.5780279,137.55,137.48,7.65775236]
[1765206259238,16.308864,137.52,137.49,7.96]
[1765206259745,16.308864,137.52,137.5,7.27272727]
[1765206260058,8.80994492,137.53,137.5,7.99272727]
[1765206260359,0.69,137.53,137.5,7.27272727]
[1765206260536,8.80994492,137.51,137.49,7.96]
[1765206261059,8.80994492,137.51,137.49,15.23325407]
[1765206262435,0.72,137.47,137.44,7.27571496]
[1765206262860,8.80994492,137.46,137.43,7.96]
[1765206263162,8.37775236,137.47,137.44,7.27587387]
[1765206263358,17.18769728,137.49,137.44,7.99587387]
[1765206263532,9.52994492,137.49,137.45,0.72]
[1765206263735,9.52994492,137.49,137.44,26.18562939]
[1765206263932,31.23886656,137.51,137.45,0.72]
[1765206264138,8.80994492,137.5,137.45,0.72]
[1765206264563,7.96,137.52,137.46,15.61775236]
[1765206264564,7.65775236,137.52,137.46,15.61775236]
[1765206264744,17.18769728,137.51,137.46,7.96]
[1765206264944,8.80994492,137.51,137.46,8.68]
[1765206265148,8.80994492,137.52,137.47,0.72]
[1765206265758,0.72,137.51,137.46,7.96]
[1765206265965,0.72,137.51,137.47,7.27431439]
[1765206266563,8.80994492,137.52,137.47,26.18010037]
[1765206266902,8.80994492,137.52,137.47,25.46010037]
[1765206266903,0.72,137.51,137.47,25.46010037]
[1765206267170,8.37775236,137.51,137.47,7.27431439]
[1765206267465,0.72,137.51,137.47,7.27431439]
[1765206268059,8.80994492,137.52,137.48,0.72]
[1765206268254,16.308864,137.53,137.49,7.96]
[1765206268747,17.028864,137.53,137.49,7.96]
[1765206268953,8.80994492,137.54,137.49,8.68]
[1765206269157,8.80994492,137.54,137.49,7.96]
[1765206269372,0.72,137.53,137.49,7.96]
[1765206270067,0.72,137.53,137.5,7.27272727]
[1765206271664,8.80994492,137.52,137.49,15.23309171]
[1765206271872,16.46769728,137.52,137.49,7.96]
[1765206272073,8.80994492,137.5,137.48,7.27378234]
[1765206272250,8.80994492,137.5,137.47,7.27418032]
[1765206272450,9.52994492,137.5,137.47,7.27418032]
[1765206273551,8.80994492,137.5,137.48,7.27372201]
[1765206274155,23.5810641,137.51,137.48,7.27372201]
[1765206274351,9.52994492,137.5,137.46,7.96]
[1765206274575,9.52994492,137.5,137.46,15.23469907]
[1765206274782,0.72,137.49,137.46,15.23469907]
[1765206275154,8.80994492,137.48,137.46,7.96]
[1765206275355,8.80994492,137.48,137.44,26.14929847]
[1765206275555,9.52994492,137.48,137.45,7.27497355]
[1765206275775,9.52994492,137.48,137.46,7.2746698]
[1765206275972,9.52994492,137.48,137.44,26.86929847]
[1765206275973,9.52994492,137.48,137.45,7.2751579]
[1765206276165,0.72,137.47,137.43,7.27617261]
[1765206276474,0.72,137.47,137.44,7.27582632]
[1765206277058,8.80994492,137.46,137.43,15.23627145]
[1765206277376,8.80994492,137.46,137.44,7.27575522]
[1765206277553,0.72,137.46,137.44,7.27575522]
[1765206277755,8.80994492,137.47,137.44,7.27575522]
[1765206277980,9.52994492,137.47,137.44,7.27575522]
[1765206278275,9.52994492,137.47,137.43,15.23621073]
[1765206278689,0.72,137.52,137.46,7.65775236]
[1765206278986,8.80994492,137.51,137.46,7.96]
[1765206279280,8.80994492,137.51,137.46,16.33775236]
[1765206279482,23.60836454,137.54,137.47,8.37775236]
[1765206279666,23.60836454,137.54,137.48,7.65775236]
[1765206279980,8.80994492,137.53,137.49,15.61775236]
[1765206280284,32.38842101,137.56,137.51,14.92995074]
[1765206280458,0.72,137.55,137.51,7.27219838]
[1765206280663,16.308864,137.56,137.52,0.72]
[1765206280875,8.80994492,137.55,137.52,0.72]
[1765206281076,8.80994492,137.55,137.52,16.33775236]
[1765206281267,8.80994492,137.57,137.52,16.33775236]
[1765206281479,40.76559767,137.57,137.52,7.96]
[1765206281681,8.80994492,137.55,137.52,7.96]
[1765206282066,9.52994492,137.55,137.52,7.96]
[1765206282306,8.80994492,137.56,137.52,15.95146805]
[1765206282586,7.65775236,137.58,137.52,15.95146805]
[1765206282587,16.46769728,137.58,137.52,33.41064198]
[1765206282885,8.80994492,137.57,137.53,5.11977272]
[1765206283078,8.80994492,137.59,137.54,4.39977272]
[1765206283277,17.028864,137.6,137.55,7.96]
[1765206283453,17.028864,137.6,137.55,8.68]
[1765206283657,0.72,137.59,137.55,7.96]
[1765206283859,11.66681916,137.61,137.55,7.96]
[1765206284059,25.11880892,137.6,137.55,8.68]
[1765206284255,7.98704644,137.61,137.56,7.2695551]
[1765206284462,5.31977272,137.64,137.58,4.39977272]
[1765206284662,0.92,137.64,137.58,12.35977272]
[1765206284862,8.80994492,137.63,137.59,0.72]
[1765206285289,0.72,137.62,137.58,7.96]
[1765206285469,8.80994492,137.61,137.58,7.96]
[1765206285687,13.20971764,137.61,137.58,7.96]
[1765206285871,0.72,137.6,137.58,7.96]
[1765206286879,8.80994492,137.59,137.58,7.96]
[1765206287078,8.80994492,137.59,137.55,7.26999384]
[1765206287079,8.80994492,137.59,137.56,7.96]
[1765206287265,8.80994492,137.59,137.54,18.17609889]
[1765206287266,25.11880892,137.57,137.51,5.11977272]
[1765206287488,25.11880892,137.57,137.52,0.72]
[1765206287671,29.51858164,137.57,137.52,0.72]
[1765206287877,25.83880892,137.57,137.52,0.72]
[1765206288071,20.34733641,137.6,137.53,4.39977272]
[1765206288286,8.80994492,137.59,137.55,7.2700836]
[1765206288784,8.80994492,137.59,137.55,7.9900836]
[1765206289294,17.028864,137.6,137.56,0.72]
[1765206289482,8.80994492,137.59,137.56,0.72]
[1765206289680,9.52994492,137.59,137.55,7.2700836]
[1765206289883,0.72,137.58,137.55,7.2700836]
[1765206290474,0.72,137.58,137.54,15.23044731]
[1765206290673,7.9885298,137.58,137.54,15.23044731]
[1765206290870,0.72,137.58,137.54,15.23044731]
[1765206292002,0.72,137.58,137.54,15.91044731]
[1765206293304,8.80994492,137.59,137.55,5.07977272]
[1765206293478,16.308864,137.6,137.55,5.07977272]
[1765206293680,16.308864,137.6,137.56,0.68]
[1765206293984,16.308864,137.6,137.57,7.96]
[1765206294378,0.85,137.64,137.59,4.39977272]
[1765206294379,0.2,137.64,137.59,4.39977272]
[1765206294586,0.2,137.64,137.62,7.26638569]
[1765206294887,0.2,137.64,137.6,7.96]
[1765206295092,0.2,137.64,137.58,5.07977272]
[1765206295093,8.80994492,137.61,137.58,7.96]
[1765206295299,0.65,137.63,137.58,7.96]
[1765206295477,8.80994492,137.62,137.58,7.96]
[1765206295677,8.80994492,137.62,137.58,8.64]
[1765206295878,9.45994492,137.63,137.58,8.64]
[1765206296079,13.85971764,137.63,137.58,15.90831555]
[1765206296280,0.65,137.62,137.58,8.64]
[1765206296500,9.45994492,137.63,137.59,7.94796795]
[1765206296702,0.2,137.64,137.59,12.34774067]
[1765206296911,9.65994492,137.64,137.6,0.68]
[1765206297088,21.32521066,137.64,137.59,15.22796795]
[1765206297404,9.65994492,137.64,137.59,15.90796795]
[1765206297607,9.65994492,137.64,137.6,0.68]
[1765206298510,0.65,137.63,137.59,15.22796795]
[1765206298692,0.65,137.63,137.59,15.90796795]
[1765206298891,7.91599982,137.63,137.59,7.96]
[1765206299104,7.91599982,137.63,137.59,8.64]
[1765206299496,7.91599982,137.63,137.59,7.96]
[1765206299815,7.91599982,137.63,137.59,15.92795029]
[1765206299816,0.65,137.63,137.59,15.92795029]
[1765206300109,9.00994492,137.64,137.6,0.7]
[1765206300330,0.2,137.64,137.6,5.09977272]
[1765206300822,0.2,137.64,137.61,7.96691374]
[1765206301316,0.2,137.64,137.62,8.66]
[1765206301816,0.2,137.64,137.6,7.96]
[1765206301817,8.80994492,137.63,137.6,7.96]
[1765206302019,13.20971764,137.63,137.6,7.96]
[1765206302195,0.68,137.62,137.6,7.96]
[1765206302898,20.47663138,137.61,137.55,7.26999184]
[1765206303084,8.80994492,137.58,137.55,7.96]
[1765206303284,12.34668646,137.61,137.55,15.9300367]
[1765206303518,7.94620521,137.63,137.56,0.7]
[1765206303688,16.508864,137.64,137.56,0.7]
[1765206303893,9.00994492,137.64,137.6,4.39977272]
[1765206304096,9.00994492,137.64,137.6,7.96]
[1765206304299,16.95541971,137.64,137.6,7.96]
[1765206304508,0.68,137.63,137.6,7.96]
[1765206304705,20.67519243,137.64,137.6,7.96]
[1765206304913,0.68,137.63,137.6,7.96]
[1765206305591,4.39977272,137.61,137.55,7.27006515]
[1765206305787,4.39977272,137.61,137.53,4.39977272]
[1765206305788,13.20971764,137.59,137.54,15.93045029]
[1765206306009,13.20971764,137.59,137.54,8.66]
[1765206306310,8.80994492,137.57,137.54,7.96]
[1765206306510,8.80994492,137.57,137.53,7.27113901]
[1765206306710,5.07977272,137.56,137.52,7.96]
[1765206306887,8.80994492,137.55,137.52,7.96]
[1765206307086,9.48994492,137.55,137.52,7.96]
[1765206307306,13.88971764,137.55,137.52,7.96]
[1765206307510,13.20971764,137.55,137.52,7.96]
[1765206307710,13.88971764,137.55,137.52,7.96]
[1765206307905,13.88971764,137.55,137.5,7.9726064]
[1765206307906,9.48994492,137.55,137.5,7.9726064]
[1765206308210,16.308864,137.57,137.51,0.7]
[1765206308211,27.97785107,137.57,137.51,0.7]
[1765206308418,13.88971764,137.56,137.51,7.27203959]
[1765206308603,13.88971764,137.56,137.5,7.97269166]
[1765206308795,7.2700836,137.55,137.5,7.97269166]
[1765206309114,13.20971764,137.54,137.49,7.96]
[1765206309301,8.80994492,137.52,137.47,0.7]
[1765206309487,8.80994492,137.51,137.47,7.96]
[1765206309689,8.80994492,137.51,137.47,8.66]
[1765206309996,25.44529261,137.55,137.47,8.66]
[1765206309997,13.20971764,137.58,137.5,4.39977272]
[1765206310309,9.48994492,137.58,137.52,4.39977272]
[1765206310493,25.79880892,137.58,137.52,4.39977272]
[1765206310689,8.80994492,137.54,137.51,7.96]
[1765206311089,16.308864,137.56,137.52,5.09977272]
[1765206311491,16.308864,137.56,137.51,15.23217153]
[1765206311492,0.2,137.64,137.55,4.39977272]
[1765206311730,12.34563045,137.63,137.56,13.05977272]
[1765206311896,8.80994492,137.59,137.54,7.96]
[1765206312210,0.68,137.62,137.56,4.39977272]
[1765206312419,8.80994492,137.61,137.57,4.39977272]
[1765206312595,7.26585773,137.63,137.58,7.96]
[1765206312795,16.308864,137.6,137.58,7.96]
[1765206313718,8.80994492,137.59,137.55,4.39977272]
[1765206314020,9.48994492,137.59,137.55,7.96]
[1765206314233,8.80994492,137.57,137.55,7.96]
[1765206314720,9.48994492,137.56,137.55,7.96]
[1765206315022,9.48994492,137.56,137.51,15.23183688]
[1765206315204,8.80994492,137.55,137.51,15.93183688]
[1765206315408,9.48994492,137.55,137.51,7.96]
[1765206315609,8.80994492,137.55,137.51,8.66]
[1765206315800,0.68,137.54,137.51,7.96]
[1765206316514,13.20971764,137.53,137.46,5.09977272]
[1765206316701,0.68,137.54,137.46,15.93474658]
[1765206316702,8.80994492,137.51,137.46,15.93474658]
[1765206316910,16.08232619,137.51,137.46,15.93474658]
[1765206317103,16.76232619,137.51,137.46,15.93474658]
[1765206317420,8.80994492,137.49,137.46,7.96]
[1765206317628,13.20971764,137.49,137.46,7.96]
[1765206317916,13.88971764,137.49,137.44,7.27576662]
[1765206318111,13.88971764,137.49,137.44,7.97576662]
[1765206318698,13.88971764,137.49,137.44,0.7]
[1765206318893,16.08426262,137.47,137.43,7.96]
[1765206319094,8.80994492,137.45,137.43,7.96]
[1765206319299,0.68,137.46,137.43,7.96]
[1765206319801,8.80994492,137.45,137.41,0.1]
[1765206320026,13.20971764,137.45,137.41,0.1]
[1765206320200,13.88971764,137.45,137.41,0.1]
[1765206320609,8.80994492,137.43,137.41,0.1]
[1765206320918,16.08646198,137.43,137.41,0.1]
[1765206321223,13.86971764,137.42,137.41,0.1]
[1765206321639,30.17858164,137.42,137.41,0.1]
[1765206322299,4.39977272,137.44,137.41,0.1]
[1765206322622,8.80994492,137.43,137.41,0.1]
[1765206323213,8.80994492,137.44,137.41,0.75]
[1765206323538,8.80994492,137.44,137.41,0.1]
[1765206324255,5.05977272,137.43,137.41,0.1]
[1765206324421,0.66,137.43,137.41,0.1]
[1765206324743,13.20971764,137.44,137.41,0.1]
[1765206324946,4.39977272,137.48,137.43,7.27643163]
[1765206325145,0.66,137.49,137.43,7.27643163]
[1765206325146,8.80994492,137.47,137.43,7.27643163]
[1765206325562,8.80994492,137.45,137.42,16.308864]
[1765206325726,8.80994492,137.45,137.43,16.308864]
[1765206326044,5.05977272,137.45,137.41,0.1]
[1765206326248,8.80994492,137.45,137.42,7.2768965]
[1765206326413,4.39977272,137.46,137.42,7.2768965]
[1765206326414,5.05977272,137.47,137.42,7.2768965]
[1765206326615,8.80994492,137.46,137.42,7.2768965]
[1765206326844,8.80994492,137.46,137.42,7.9268965]
[1765206327243,11.67449009,137.47,137.42,7.9268965]
[1765206327445,8.80994492,137.46,137.42,7.9268965]
[1765206327655,9.46994492,137.47,137.42,26.11929935]
[1765206327821,8.80994492,137.46,137.43,7.96]
[1765206328716,8.80994492,137.47,137.43,8.61]
[1765206329137,12.33317582,137.49,137.44,0.65]
[1765206329454,8.80994492,137.48,137.44,0.65]
[1765206329736,8.80994492,137.5,137.45,4.39977272]
[1765206330147,8.80994492,137.51,137.46,0.65]
[1765206330355,8.80994492,137.51,137.47,7.96]
[1765206330742,8.80994492,137.53,137.48,5.04977272]
[1765206331255,8.80994492,137.54,137.5,11.67249999]
[1765206331541,11.66951008,137.56,137.5,11.67249999]
[1765206331755,36.32969001,137.63,137.5,11.67249999]
[1765206331756,0.66,137.61,137.55,4.39977272]
[1765206331933,4.39977272,137.62,137.55,12.35977272]
[1765206332116,4.39977272,137.61,137.55,12.35977272]
[1765206332527,5.05977272,137.6,137.55,12.35977272]
[1765206332930,8.80994492,137.58,137.55,12.35977272]
[1765206333358,8.80994492,137.58,137.55,13.00977272]
[1765206334254,8.80994492,137.58,137.55,20.27978741]
[1765206334643,8.80994492,137.58,137.55,7.96]
[1765206334830,16.73857009,137.58,137.55,7.96]
[1765206335545,21.13834281,137.58,137.55,7.96]
[1765206335746,8.80994492,137.56,137.52,16.308864]
[1765206335949,13.20971764,137.56,137.51,7.96]
[1765206336140,8.80994492,137.54,137.51,7.96]
[1765206336450,8.80994492,137.54,137.49,19.63265943]
[1765206336654,9.46994492,137.54,137.49,20.28265943]
[1765206336840,9.46994492,137.54,137.49,19.63298063]
[1765206337153,13.20971764,137.54,137.49,7.96]
[1765206337339,13.20971764,137.5,137.44,5.04977272]
[1765206337549,8.80994492,137.5,137.44,7.96]
[1765206337859,8.80994492,137.48,137.44,35.94446234]
[1765206338037,8.80994492,137.48,137.42,11.67670734]
[1765206338038,13.20971764,137.48,137.42,11.67670734]
[1765206338233,8.80994492,137.46,137.42,15.23693462]
[1765206338434,8.80994492,137.46,137.42,15.23680543]
[1765206338741,9.46994492,137.46,137.42,19.63657815]
[1765206339046,9.46994492,137.46,137.42,12.35977272]
[1765206339359,16.74490479,137.46,137.42,7.96]
[1765206339655,16.08490479,137.46,137.42,15.88674086]
[1765206339856,16.08490479,137.46,137.42,20.28651358]
[1765206340155,16.08490479,137.46,137.42,13.00977272]
[1765206340352,16.08490479,137.46,137.42,8.61]
[1765206340942,16.08490479,137.46,137.42,15.88692382]
[1765206341138,16.08490479,137.46,137.42,20.28669654]
[1765206342558,8.80994492,137.46,137.43,0.65]
[1765206342745,16.08213066,137.52,137.45,7.66850633]
[1765206342941,16.08213066,137.52,137.46,7.66850633]
[1765206342942,16.74213066,137.52,137.46,7.66850633]
[1765206343140,8.80994492,137.52,137.48,7.66850633]
[1765206343336,8.32850633,137.55,137.5,7.66850633]
[1765206343537,14.937533,137.57,137.51,7.66850633]
[1765206343743,7.96,137.58,137.51,7.66850633]
[1765206343744,22.89718969,137.58,137.52,7.66850633]
[1765206343939,15.22868336,137.58,137.53,7.66850633]
[1765206344153,14.9370172,137.58,137.52,0.65]
[1765206344357,7.66850633,137.56,137.51,24.268864]
[1765206344638,8.62,137.6,137.53,7.66850633]
[1765206344839,8.80994492,137.58,137.53,7.66850633]
[1765206345152,16.47845125,137.58,137.52,8.31850633]
[1765206345345,17.13845125,137.58,137.53,7.66850633]
[1765206345552,8.80994492,137.58,137.54,7.66850633]
[1765206345871,8.80994492,137.58,137.54,16.27850633]
[1765206346536,16.07850507,137.58,137.54,16.27850633]
[1765206346736,16.07850507,137.58,137.54,23.54886377]
[1765206347045,16.73850507,137.58,137.54,7.96]
[1765206348244,16.73850507,137.58,137.54,15.23046537]
[1765206348567,16.73850507,137.58,137.54,7.96]
[1765206348762,8.80994492,137.56,137.54,7.96]
[1765206348980,8.80994492,137.54,137.51,16.308864]
[1765206349144,7.66850633,137.54,137.49,7.96]
[1765206349343,8.80994492,137.52,137.49,7.96]
[1765206349772,8.80994492,137.52,137.49,15.23305473]
[1765206349972,8.80994492,137.52,137.49,22.90156106]
[1765206350566,8.80994492,137.52,137.49,15.23305473]
[1765206350768,0.66,137.6,137.51,7.66850633]
[1765206350945,8.80994492,137.59,137.55,7.66850633]
[1765206351146,8.80994492,137.59,137.54,7.66850633]
[1765206351339,17.18845125,137.59,137.53,7.66850633]
[1765206351566,7.66850633,137.58,137.53,7.66850633]
[1765206351741,8.37850633,137.58,137.53,7.66850633]
[1765206351948,8.80994492,137.56,137.53,7.66850633]
[1765206352349,8.80994492,137.57,137.54,7.66850633]
[1765206353165,8.80994492,137.57,137.52,7.96]
[1765206353370,8.80994492,137.52,137.46,7.27484359]
[1765206353564,7.66850633,137.53,137.47,8.33850633]
[1765206353776,8.80994492,137.52,137.47,8.33850633]
[1765206354066,16.47845125,137.52,137.47,8.33850633]
[1765206354375,8.80994492,137.48,137.44,0.67]
[1765206354545,8.80994492,137.48,137.44,7.27545251]
[1765206354745,26.85138508,137.51,137.46,7.66850633]
[1765206354746,8.80994492,137.51,137.46,7.66850633]
[1765206354969,8.80994492,137.51,137.46,7.96]
[1765206355163,8.80994492,137.51,137.47,0.67]
[1765206355851,8.80994492,137.51,137.48,7.27378527]
[1765206356052,16.08236619,137.51,137.47,7.94412979]
[1765206356254,16.79236619,137.51,137.46,15.23464523]
[1765206356576,8.80994492,137.51,137.47,7.94427347]
[1765206357173,8.80994492,137.52,137.48,0.67]
[1765206357372,9.51994492,137.52,137.48,0.67]
[1765206357946,16.08163154,137.52,137.48,7.94362137]
[1765206358160,23.74979256,137.53,137.48,7.94362137]
[1765206358463,8.37850633,137.52,137.48,0.67]
[1765206358669,7.66850633,137.51,137.46,7.96]
[1765206358988,8.80994492,137.49,137.46,15.23475504]
[1765206359149,8.80994492,137.49,137.46,7.96]
[1765206359496,16.47845125,137.47,137.42,0.68]
[1765206359655,16.47845125,137.47,137.42,15.23682459]
[1765206359851,8.80994492,137.45,137.42,15.91682459]
[1765206360366,7.27328782,137.49,137.44,7.66850633]
[1765206360548,7.27328782,137.49,137.43,0.68]
[1765206360549,8.80994492,137.48,137.45,7.96]
[1765206360771,16.47845125,137.48,137.45,7.96]
[1765206360976,8.80994492,137.45,137.41,8.06]
[1765206361170,8.80994492,137.43,137.41,8.06]
[1765206361600,8.80994492,137.46,137.42,0.68]
[1765206361987,8.80994492,137.46,137.42,7.95693324]
[1765206362189,7.66850633,137.43,137.41,0.1]
[1765206362687,8.80994492,137.42,137.41,0.1]
[1765206362869,9.49994492,137.45,137.41,0.1]
[1765206363071,8.80994492,137.42,137.41,0.1]
[1765206363370,16.47845125,137.42,137.41,0.1]
[1765206363570,8.80994492,137.42,137.41,0.1]
[1765206364293,16.08690606,137.42,137.41,0.1]
[1765206365773,8.80994492,137.42,137.41,0.1]
[1765206366379,16.08690606,137.42,137.41,0.1]
[1765206366601,23.75541239,137.42,137.41,0.1]
[1765206366807,24.44541239,137.42,137.41,0.1]
[1765206368085,16.08690606,137.42,137.41,0.1]
[1765206369097,8.80994492,137.42,137.41,0.1]
[1765206369480,8.80994492,137.43,137.41,0.1]
[1765206370506,16.08591852,137.44,137.41,0.1]
[1765206370876,16.77591852,137.44,137.41,0.1]
[1765206371082,16.08591852,137.44,137.41,0.1]
[1765206371290,0.69,137.43,137.41,0.1]
[1765206371584,8.35850633,137.43,137.41,0.1]
[1765206371783,16.08591852,137.44,137.41,0.1]
[1765206372307,24.44442485,137.44,137.41,0.1]
[1765206372503,0.69,137.43,137.41,0.1]
[1765206372805,8.35850633,137.43,137.41,0.1]
[1765206372983,0.69,137.43,137.41,0.1]
[1765206373386,16.08591852,137.44,137.41,0.78]
[1765206373706,16.08591852,137.44,137.41,0.1]
[1765206373905,16.77591852,137.44,137.41,0.1]
[1765206374109,24.44442485,137.44,137.41,0.1]
[1765206374410,23.75541239,137.42,137.41,0.1]
[1765206374588,31.71541239,137.42,137.41,0.1]
[1765206374784,32.40541239,137.42,137.41,0.1]
[1765206377184,16.08690606,137.42,137.41,0.1]
[1765206377724,8.80994492,137.43,137.41,0.1]
[1765206378015,16.47845125,137.43,137.41,0.1]
[1765206378196,8.80994492,137.43,137.41,0.1]
[1765206378585,8.80994492,137.45,137.42,0.68]
[1765206378785,8.80994492,137.45,137.41,0.1]
[1765206378786,16.47845125,137.45,137.41,0.1]
[1765206378987,8.35850633,137.44,137.41,0.1]
[1765206379611,8.80994492,137.45,137.41,0.78]
[1765206380303,16.08568774,137.45,137.41,0.78]
[1765206380840,23.75419407,137.45,137.41,8.05744325]
[1765206381494,16.08568774,137.45,137.42,0.67]
[1765206382284,16.08568774,137.45,137.41,0.1]
[1765206382504,16.08568774,137.45,137.41,0.77]
[1765206382903,8.80994492,137.45,137.41,0.77]
[1765206383300,16.08534429,137.45,137.41,0.77]
[1765206383900,8.80994492,137.45,137.41,0.77]
[1765206384103,16.08551084,137.45,137.41,0.77]
[1765206384306,7.27505417,137.46,137.42,7.27696114]
[1765206384515,8.80994492,137.45,137.42,7.27696114]
[1765206384712,22.90303811,137.47,137.43,0.67]
[1765206384953,14.94072772,137.51,137.45,7.66850633]
[1765206385101,8.35850633,137.53,137.46,16.29850633]
[1765206385619,14.94025348,137.52,137.47,0.67]
[1765206385795,8.80994492,137.51,137.47,0.67]
[1765206385996,17.16845125,137.51,137.46,7.96]
[1765206386294,7.27325623,137.49,137.46,7.96]
[1765206386499,8.80994492,137.48,137.46,7.96]
[1765206386803,7.66850633,137.52,137.47,0.67]
[1765206387004,8.80994492,137.51,137.47,0.67]
[1765206387209,8.80994492,137.52,137.47,8.33850633]
[1765206387405,16.47845125,137.52,137.47,0.67]
[1765206387603,7.66850633,137.51,137.47,0.67]
[1765206387809,8.35850633,137.51,137.45,7.27516655]
[1765206388022,8.80994492,137.49,137.45,0.67]
[1765206388213,16.47845125,137.49,137.45,0.67]
[1765206388420,7.27378527,137.48,137.45,0.67]
[1765206389017,16.08340428,137.49,137.45,7.94535314]
[1765206389418,36.3557042,137.53,137.46,0.67]
[1765206389419,25.84813916,137.52,137.46,0.67]
[1765206389603,8.80994492,137.51,137.46,8.33850633]
[1765206390009,7.27135915,137.53,137.48,7.66850633]
[1765206390310,8.80994492,137.52,137.48,7.66850633]
[1765206390508,7.2717397,137.52,137.48,0.67]
[1765206390700,17.16845125,137.51,137.46,0.67]
[1765206390904,8.80994492,137.49,137.46,7.96]
[1765206391133,8.80994492,137.49,137.46,8.63]
[1765206391331,8.80994492,137.5,137.46,8.63]
[1765206392027,33.11642998,137.54,137.48,7.66850633]
[1765206392331,8.80994492,137.53,137.48,7.66850633]
[1765206392508,8.80994492,137.53,137.49,8.33850633]
[1765206392917,8.80994492,137.53,137.5,0.67]
[1765206393426,8.80994492,137.54,137.5,16.29850633]
[1765206393624,16.08018856,137.55,137.5,16.29850633]
[1765206393819,8.80994492,137.55,137.51,0.67]
[1765206394028,16.0800369,137.55,137.51,0.67]
[1765206394502,23.74854323,137.55,137.51,0.67]
[1765206395232,8.80994492,137.55,137.51,7.94211111]
[1765206395412,7.26922918,137.57,137.51,26.12260707]
[1765206395626,8.80994492,137.56,137.52,0.67]
[1765206395821,7.26922918,137.57,137.52,0.67]
[1765206396007,8.80994492,137.56,137.52,33.78884857]
[1765206396328,7.95861625,137.58,137.52,33.78884857]
[1765206396545,7.66850633,137.61,137.54,7.66850633]
[1765206396737,7.66850633,137.61,137.55,15.62850633]
[1765206397047,7.26585773,137.63,137.57,7.66850633]
[1765206397223,14.93436406,137.63,137.57,7.66850633]
[1765206397411,7.26585773,137.63,137.58,0.67]
[1765206397754,14.93436406,137.63,137.58,0.67]
[1765206398049,8.80994492,137.62,137.58,0.67]
[1765206398211,7.86850633,137.64,137.59,7.96]
[1765206398212,0.2,137.64,137.59,7.96]
[1765206398439,0.2,137.64,137.59,15.62850633]
[1765206398646,0.89,137.64,137.6,0.67]
[1765206398856,8.80994492,137.63,137.6,0.67]
[1765206399141,8.80994492,137.6,137.55,7.96]
[1765206399345,8.80994492,137.58,137.55,7.96]
[1765206400068,16.07873858,137.58,137.55,7.96]
[1765206400360,8.35850633,137.57,137.54,0.043377]
[1765206400573,8.80994492,137.56,137.54,0.043377]
[1765206400766,17.16845125,137.56,137.54,0.043377]
[1765206400951,25.44003948,137.58,137.54,0.043377]
[1765206400952,7.66850633,137.55,137.54,0.043377]
[1765206401157,17.16845125,137.55,137.54,0.043377]
[1765206401857,25.12845125,137.55,137.54,0.043377]
[1765206402263,32.39853485,137.55,137.54,0.043377]
[1765206404562,48.70739885,137.55,137.54,0.043377]
[1765206404861,8.80994492,137.5,137.42,0.67]
[1765206405064,16.308864,137.51,137.41,11.61729372]
[1765206405065,4.40626169,137.45,137.41,11.61729372]
[1765206405365,8.80994492,137.47,137.42,5.07626169]
[1765206405570,8.80994492,137.47,137.42,0.67]
[1765206405865,8.80994492,137.47,137.41,34.21728221]
[1765206405866,13.21620661,137.47,137.43,0.67]